[Event "*** Titled Tuesday Blitz"]
[Site "Chess.com"]
[Date "2021.03.30"]
[Round "4"]
[White "GiorgianBarbosa"]
[Black "enriquetejedor"]
[Result "0-1"]
[WhiteElo "2421"]
[BlackElo "2616"]
[TimeControl "180+1"]
[EndTime "10:41:45 PDT"]
[Termination "enriquetejedor won by resignation"]

1. d4 {[%clk 0:03:00.9]} 1... Nf6 {[%clk 0:02:58.9]} 2. c4 {[%clk 0:03:00.3]}
2... e6 {[%clk 0:02:45.8]} 3. Nc3 {[%clk 0:02:59.4]} 3... d5 {[%clk 0:02:42.4]}
4. cxd5 {[%clk 0:02:54.9]} 4... Nxd5 {[%clk 0:02:38.1]} 5. e4 {[%clk 0:02:53.6]}
5... Nxc3 {[%clk 0:02:22.7]} 6. bxc3 {[%clk 0:02:54.5]} 6... c5 {[%clk
0:02:23.6]} 7. Nf3 {[%clk 0:02:54.1]} 7... Be7 {[%clk 0:02:20.5]} 8. Bb5+ {[%clk
0:02:51.4]} 8... Bd7 {[%clk 0:02:16.6]} 9. Bxd7+ {[%clk 0:02:51]} 9... Nxd7
{[%clk 0:02:14.5]} 10. O-O {[%clk 0:02:51.4]} 10... O-O {[%clk 0:02:14.4]} 11.
Rb1 {[%clk 0:02:46.1]} 11... cxd4 {[%clk 0:02:13.7]} 12. cxd4 {[%clk 0:02:45.8]}
12... Nb6 {[%clk 0:02:08.7]} 13. Bf4 {[%clk 0:02:36.2]} 13... Rc8 {[%clk
0:02:06.6]} 14. a4 {[%clk 0:02:34]} 14... Qd7 {[%clk 0:01:55.7]} 15. Ne5 {[%clk
0:02:10.9]} 15... Qxa4 {[%clk 0:01:46.1]} 16. Qxa4 {[%clk 0:02:10.2]} 16... Nxa4
{[%clk 0:01:47]} 17. Rxb7 {[%clk 0:02:10.2]} 17... Bf6 {[%clk 0:01:47.5]} 18.
Rxa7 {[%clk 0:02:07.2]} 18... Nc3 {[%clk 0:01:48.1]} 19. Be3 {[%clk 0:01:35.6]}
19... Nxe4 {[%clk 0:01:34.4]} 20. Nd7 {[%clk 0:01:31.3]} 20... Rfd8 {[%clk
0:01:34.1]} 21. Nxf6+ {[%clk 0:01:29.2]} 21... Nxf6 {[%clk 0:01:35]} 22. Rb1
{[%clk 0:01:27]} 22... Rd7 {[%clk 0:01:34.9]} 23. Rxd7 {[%clk 0:01:19.6]} 23...
Nxd7 {[%clk 0:01:35.8]} 24. Rb7 {[%clk 0:01:19.5]} 24... Nf6 {[%clk 0:01:35]}
25. g3 {[%clk 0:01:15.9]} 25... h6 {[%clk 0:01:34.7]} 26. Kg2 {[%clk 0:01:15.7]}
26... Nd5 {[%clk 0:01:34.4]} 27. Kf3 {[%clk 0:01:14.2]} 27... Kf8 {[%clk
0:01:28.6]} 28. h4 {[%clk 0:01:11.4]} 28... Ne7 {[%clk 0:01:26.2]} 29. Ra7
{[%clk 0:01:02.2]} 29... Nc6 {[%clk 0:01:24.8]} 30. Ra6 {[%clk 0:00:46.6]} 30...
Nb4 {[%clk 0:01:21.8]} 31. Ra7 {[%clk 0:00:45.2]} 31... h5 {[%clk 0:01:18.5]}
32. Rb7 {[%clk 0:00:39.2]} 32... Nd5 {[%clk 0:01:16.9]} 33. Ra7 {[%clk
0:00:38.3]} 33... Ne7 {[%clk 0:01:13.3]} 34. Rb7 {[%clk 0:00:34.7]} 34... Nf5
{[%clk 0:01:11.3]} 35. Ra7 {[%clk 0:00:33]} 35... Nd6 {[%clk 0:01:10.7]} 36. Rd7
{[%clk 0:00:28.8]} 36... Nb5 {[%clk 0:01:09.6]} 37. Rb7 {[%clk 0:00:26.9]} 37...
Nd6 {[%clk 0:01:08]} 38. Rd7 {[%clk 0:00:26.5]} 38... Nc4 {[%clk 0:01:08.5]} 39.
Rb7 {[%clk 0:00:25.6]} 39... Kg8 {[%clk 0:01:07.2]} 40. Ra7 {[%clk 0:00:25.4]}
40... Nd6 {[%clk 0:01:05]} 41. Rd7 {[%clk 0:00:25.2]} 41... Ne8 {[%clk
0:01:04.3]} 42. Rb7 {[%clk 0:00:24.2]} 42... Rd8 {[%clk 0:01:02.5]} 43. Ra7
{[%clk 0:00:22.4]} 43... Nd6 {[%clk 0:01:00.8]} 44. Ra4 {[%clk 0:00:20.4]} 44...
Kh7 {[%clk 0:01:00.9]} 45. Rb4 {[%clk 0:00:20.4]} 45... Kg6 {[%clk 0:01:00.7]}
46. Ra4 {[%clk 0:00:20.9]} 46... Rc8 {[%clk 0:00:57.7]} 47. Ra5 {[%clk
0:00:18.9]} 47... f6 {[%clk 0:00:57.1]} 48. Ra6 {[%clk 0:00:17.5]} 48... Rd8
{[%clk 0:00:57.6]} 49. Ra7 {[%clk 0:00:17.3]} 49... Nb5 {[%clk 0:00:55]} 50. Ra6
{[%clk 0:00:15.6]} 50... Nc7 {[%clk 0:00:53.7]} 51. Rc6 {[%clk 0:00:15.1]} 51...
Rd7 {[%clk 0:00:54.2]} 52. Rb6 {[%clk 0:00:15.5]} 52... Kf7 {[%clk 0:00:53.3]}
53. Rb4 {[%clk 0:00:14.9]} 53... Nd5 {[%clk 0:00:53.1]} 54. Ra4 {[%clk
0:00:15.5]} 54... Rc7 {[%clk 0:00:53]} 55. Ra5 {[%clk 0:00:14.8]} 55... Rb7
{[%clk 0:00:53.2]} 56. Rc5 {[%clk 0:00:14.4]} 56... Kg6 {[%clk 0:00:53.4]} 57.
Ra5 {[%clk 0:00:14.8]} 57... Kf5 {[%clk 0:00:53.7]} 58. Rc5 {[%clk 0:00:15.2]}
58... Ra7 {[%clk 0:00:53.9]} 59. Rb5 {[%clk 0:00:15.3]} 59... Ra3 {[%clk
0:00:53.8]} 60. Rc5 {[%clk 0:00:14.7]} 60... g6 {[%clk 0:00:53.9]} 61. Rb5
{[%clk 0:00:14.7]} 61... Rc3 {[%clk 0:00:53.9]} 62. Rc5 {[%clk 0:00:14.3]} 62...
Ra3 {[%clk 0:00:49.4]} 63. Rb5 {[%clk 0:00:14.2]} 63... g5 {[%clk 0:00:48]} 64.
hxg5 {[%clk 0:00:13.3]} 64... fxg5 {[%clk 0:00:48.9]} 65. Rb8 {[%clk 0:00:13.1]}
65... g4+ {[%clk 0:00:49]} 66. Ke2 {[%clk 0:00:12.5]} 66... Nxe3 {[%clk
0:00:49.1]} 67. fxe3 {[%clk 0:00:12.3]} 67... Ke4 {[%clk 0:00:49.4]} 68. Re8
{[%clk 0:00:10.1]} 68... Rxe3+ {[%clk 0:00:48.3]} 69. Kf2 {[%clk 0:00:10.6]}
69... Kxd4 {[%clk 0:00:47]} 70. Rd8+ {[%clk 0:00:09.4]} 70... Ke4 {[%clk
0:00:47.2]} 71. Re8 {[%clk 0:00:09.8]} 71... Rf3+ {[%clk 0:00:47]} 72. Kg2
{[%clk 0:00:10.3]} 72... e5 {[%clk 0:00:46.9]} 73. Rh8 {[%clk 0:00:09.4]} 73...
Rf5 {[%clk 0:00:47]} 74. Ra8 {[%clk 0:00:10]} 74... Rf6 {[%clk 0:00:46]} 75. Rh8
{[%clk 0:00:09.4]} 75... Rf5 {[%clk 0:00:45.2]} 76. Ra8 {[%clk 0:00:10]} 76...
Kd5 {[%clk 0:00:44.9]} 77. Ra5+ {[%clk 0:00:09.9]} 77... Ke6 {[%clk 0:00:45]}
78. Ra6+ {[%clk 0:00:09.8]} 78... Kf7 {[%clk 0:00:45.4]} 79. Ra7+ {[%clk
0:00:10]} 79... Kg6 {[%clk 0:00:45.7]} 80. Re7 {[%clk 0:00:10]} 80... Rg5 {[%clk
0:00:43.3]} 81. Re6+ {[%clk 0:00:09.2]} 81... Kf5 {[%clk 0:00:43.6]} 82. Ra6
{[%clk 0:00:09.2]} 82... Rg6 {[%clk 0:00:43.4]} 83. Ra5 {[%clk 0:00:08.1]} 83...
Rh6 {[%clk 0:00:43.6]} 84. Ra4 {[%clk 0:00:06.8]} 84... h4 {[%clk 0:00:43.4]}
85. gxh4 {[%clk 0:00:06.2]} 85... Rxh4 {[%clk 0:00:44.3]} 86. Ra8 {[%clk
0:00:05]} 86... Rh6 {[%clk 0:00:42.9]} 87. Kg3 {[%clk 0:00:04]} 87... Rh3+
{[%clk 0:00:43]} 88. Kg2 {[%clk 0:00:04.6]} 88... Rf3 {[%clk 0:00:41.7]} 89.
Rf8+ {[%clk 0:00:04.6]} 89... Ke4 {[%clk 0:00:41.9]} 90. Ra8 {[%clk 0:00:05.5]}
90... Rc3 {[%clk 0:00:41.4]} 91. Rg8 {[%clk 0:00:05.5]} 91... Kf5 {[%clk
0:00:39.4]} 92. Rf8+ {[%clk 0:00:05.9]} 92... Ke4 {[%clk 0:00:39.6]} 93. Rg8
{[%clk 0:00:06]} 93... Rc2+ {[%clk 0:00:36.7]} 94. Kg3 {[%clk 0:00:05.7]} 94...
Ke3 {[%clk 0:00:36.5]} 95. Kxg4 {[%clk 0:00:05]} 95... Rg2+ {[%clk 0:00:35.9]}
0-1

[Event "*** Titled Tuesday Blitz"]
[Site "Chess.com"]
[Date "2021.03.30"]
[Round "4"]
[White "pheonixking2000"]
[Black "GM_LOADING"]
[Result "0-1"]
[WhiteElo "2759"]
[BlackElo "2537"]
[TimeControl "180+1"]
[EndTime "10:41:50 PDT"]
[Termination "GM_LOADING won on time"]

1. Nf3 {[%clk 0:03:00.9]} 1... Nf6 {[%clk 0:03:00.3]} 2. g3 {[%clk 0:03:00.8]}
2... d5 {[%clk 0:02:59.9]} 3. Bg2 {[%clk 0:03:00.2]} 3... c6 {[%clk 0:03:00.8]}
4. O-O {[%clk 0:02:59.6]} 4... Bg4 {[%clk 0:03:01.3]} 5. d3 {[%clk 0:02:59.8]}
5... Nbd7 {[%clk 0:03:01.8]} 6. h3 {[%clk 0:02:59.2]} 6... Bh5 {[%clk
0:03:00.6]} 7. Qe1 {[%clk 0:02:57.1]} 7... e6 {[%clk 0:03:00.2]} 8. e4 {[%clk
0:02:57.2]} 8... h6 {[%clk 0:02:57.3]} 9. e5 {[%clk 0:02:55.3]} 9... Nh7 {[%clk
0:02:56.5]} 10. Nbd2 {[%clk 0:02:50.2]} 10... Be7 {[%clk 0:02:49.4]} 11. Qe2
{[%clk 0:02:41.2]} 11... Ng5 {[%clk 0:02:42.3]} 12. g4 {[%clk 0:02:33]} 12...
Nxf3+ {[%clk 0:02:38.1]} 13. Nxf3 {[%clk 0:02:33.9]} 13... Bg6 {[%clk
0:02:38.5]} 14. Nd4 {[%clk 0:02:32.4]} 14... c5 {[%clk 0:02:34.8]} 15. Nb5
{[%clk 0:02:28.3]} 15... Qb6 {[%clk 0:02:14.8]} 16. Nc3 {[%clk 0:02:27.5]} 16...
h5 {[%clk 0:02:14.7]} 17. a4 {[%clk 0:02:12.4]} 17... hxg4 {[%clk 0:01:28.6]}
18. hxg4 {[%clk 0:02:12.7]} 18... O-O-O {[%clk 0:01:24.1]} 19. a5 {[%clk
0:02:12.4]} 19... Qc7 {[%clk 0:01:20.6]} 20. Bf4 {[%clk 0:02:11.7]} 20... Kb8
{[%clk 0:01:12.4]} 21. Rae1 {[%clk 0:01:59.7]} 21... a6 {[%clk 0:01:06.8]} 22.
Bg3 {[%clk 0:01:58.5]} 22... Bh4 {[%clk 0:00:56.3]} 23. Bh2 {[%clk 0:01:54]}
23... Qxa5 {[%clk 0:00:53.7]} 24. Nxd5 {[%clk 0:01:52.4]} 24... exd5 {[%clk
0:00:52]} 25. e6+ {[%clk 0:01:53.1]} 25... Ka7 {[%clk 0:00:51.9]} 26. exd7
{[%clk 0:01:53.2]} 26... Rxd7 {[%clk 0:00:47.1]} 27. b4 {[%clk 0:01:52.9]} 27...
cxb4 {[%clk 0:00:44.8]} 28. Be5 {[%clk 0:01:47.1]} 28... Bf6 {[%clk 0:00:40.9]}
29. Bxf6 {[%clk 0:01:40.2]} 29... gxf6 {[%clk 0:00:37.8]} 30. Qe3+ {[%clk
0:01:39.8]} 30... Ka8 {[%clk 0:00:35.8]} 31. Qd4 {[%clk 0:01:36.2]} 31... Rg8
{[%clk 0:00:20.4]} 32. f4 {[%clk 0:01:31.5]} 32... f5 {[%clk 0:00:19.6]} 33. g5
{[%clk 0:01:30.9]} 33... Rc8 {[%clk 0:00:17]} 34. Ra1 {[%clk 0:01:27]} 34... Qc5
{[%clk 0:00:13.5]} 35. Qxc5 {[%clk 0:01:26.5]} 35... Rxc5 {[%clk 0:00:14.4]} 36.
Rf2 {[%clk 0:01:27.2]} 36... Rdc7 {[%clk 0:00:14.5]} 37. Re1 {[%clk 0:01:20.7]}
37... Rxc2 {[%clk 0:00:09.8]} 38. Rxc2 {[%clk 0:01:19.5]} 38... Rxc2 {[%clk
0:00:10.7]} 39. Bxd5 {[%clk 0:01:20.1]} 39... Rc7 {[%clk 0:00:08.9]} 40. Kf2
{[%clk 0:01:11]} 40... Ka7 {[%clk 0:00:09.2]} 41. Rb1 {[%clk 0:01:08]} 41... Rd7
{[%clk 0:00:09]} 42. Bf3 {[%clk 0:00:54.7]} 42... Rxd3 {[%clk 0:00:06.9]} 43.
Rxb4 {[%clk 0:00:55.1]} 43... b5 {[%clk 0:00:06.7]} 44. Rb1 {[%clk 0:00:52.1]}
44... Rd6 {[%clk 0:00:07.2]} 45. Re1 {[%clk 0:00:50.2]} 45... f6 {[%clk
0:00:07.7]} 46. Re7+ {[%clk 0:00:49.2]} 46... Kb6 {[%clk 0:00:08.2]} 47. gxf6
{[%clk 0:00:45.5]} 47... Rxf6 {[%clk 0:00:08]} 48. Kg3 {[%clk 0:00:46.4]} 48...
Bf7 {[%clk 0:00:04.4]} 49. Kh4 {[%clk 0:00:44.6]} 49... Bc4 {[%clk 0:00:04.5]}
50. Kg5 {[%clk 0:00:44.5]} 50... Re6 {[%clk 0:00:05]} 51. Rb7+ {[%clk
0:00:43.1]} 51... Kc5 {[%clk 0:00:05.4]} 52. Kxf5 {[%clk 0:00:44]} 52... Rd6
{[%clk 0:00:02.6]} 53. Ke5 {[%clk 0:00:41.4]} 53... Rd3 {[%clk 0:00:03]} 54. Be4
{[%clk 0:00:40.8]} 54... Re3 {[%clk 0:00:03.6]} 55. Rc7+ {[%clk 0:00:37]} 55...
Kb4 {[%clk 0:00:04]} 56. Kd4 {[%clk 0:00:36.9]} 56... Re1 {[%clk 0:00:04.7]} 57.
f5 {[%clk 0:00:37.1]} 57... a5 {[%clk 0:00:05.3]} 58. f6 {[%clk 0:00:27.7]}
58... a4 {[%clk 0:00:05.7]} 59. Bf5 {[%clk 0:00:20.1]} 59... Rf1 {[%clk
0:00:05.9]} 60. Ke5 {[%clk 0:00:17.2]} 60... a3 {[%clk 0:00:06.3]} 61. Rxc4+
{[%clk 0:00:16.1]} 61... bxc4 {[%clk 0:00:05.7]} 62. f7 {[%clk 0:00:16.2]} 62...
a2 {[%clk 0:00:06]} 63. f8=Q+ {[%clk 0:00:16.7]} 63... Kb3 {[%clk 0:00:06.6]}
64. Qb8+ {[%clk 0:00:16.5]} 64... Kc3 {[%clk 0:00:07.2]} 65. Qb6 {[%clk
0:00:03.4]} 65... a1=Q {[%clk 0:00:06.6]} 66. Ke6 {[%clk 0:00:03.2]} 66... Qe1+
{[%clk 0:00:05.3]} 67. Kf6 {[%clk 0:00:03.4]} 67... Rxf5+ {[%clk 0:00:03.7]} 68.
Kxf5 {[%clk 0:00:03.4]} 68... Qf1+ {[%clk 0:00:04.4]} 69. Ke4 {[%clk 0:00:03.2]}
69... Qd3+ {[%clk 0:00:04.7]} 70. Kf4 {[%clk 0:00:02.6]} 70... Kd2 {[%clk
0:00:04.6]} 71. Qb2+ {[%clk 0:00:02.1]} 71... Qc2 {[%clk 0:00:04.5]} 72. Qb4+
{[%clk 0:00:02.6]} 72... c3 {[%clk 0:00:04.6]} 73. Qd6+ {[%clk 0:00:03.1]} 73...
Qd3 {[%clk 0:00:04.9]} 74. Qb4 {[%clk 0:00:04]} 74... Kd1 {[%clk 0:00:04]} 75.
Qa4+ {[%clk 0:00:03.3]} 75... c2 {[%clk 0:00:04]} 76. Kg5 {[%clk 0:00:03.7]}
76... Kd2 {[%clk 0:00:03.4]} 77. Qa5+ {[%clk 0:00:03.2]} 77... Qc3 {[%clk
0:00:03.8]} 78. Qd5+ {[%clk 0:00:03.6]} 78... Ke2 {[%clk 0:00:04.2]} 79. Qg2+
{[%clk 0:00:03.5]} 79... Kd1 {[%clk 0:00:04]} 80. Qf1+ {[%clk 0:00:03.7]} 80...
Qe1 {[%clk 0:00:03.8]} 81. Qf3+ {[%clk 0:00:02.9]} 81... Qe2 {[%clk 0:00:03.4]}
82. Qb3 {[%clk 0:00:03.8]} 82... Ke1 {[%clk 0:00:02.1]} 83. Qg3+ {[%clk
0:00:02.6]} 83... Kf1 {[%clk 0:00:02.4]} 84. Qf4+ {[%clk 0:00:02.1]} 84... Qf2
{[%clk 0:00:02.7]} 85. Qc1+ {[%clk 0:00:02.3]} 85... Kg2 {[%clk 0:00:03.1]} 86.
Kh6 {[%clk 0:00:02.6]} 86... Kg3 {[%clk 0:00:02.5]} 87. Kg6 {[%clk 0:00:02.5]}
87... Kg4 {[%clk 0:00:02.8]} 88. Kh7 {[%clk 0:00:02.6]} 88... Qf5+ {[%clk
0:00:02.8]} 89. Kh8 {[%clk 0:00:02.3]} 89... Kh5 {[%clk 0:00:03.5]} 90. Qh1+
{[%clk 0:00:01.7]} 90... Kg6 {[%clk 0:00:03.8]} 91. Qg1+ {[%clk 0:00:02.6]}
91... Qg5 {[%clk 0:00:04.3]} 92. Qb6+ {[%clk 0:00:02.7]} 92... Qf6+ {[%clk
0:00:04.9]} 93. Qxf6+ {[%clk 0:00:02.6]} 93... Kxf6 {[%clk 0:00:05.8]} 0-1

[Event "*** Titled Tuesday Blitz"]
[Site "Chess.com"]
[Date "2021.03.30"]
[Round "4"]
[White "OparinGrigoriy"]
[Black "chessdjw"]
[Result "0-1"]
[WhiteElo "2978"]
[BlackElo "2786"]
[TimeControl "180+1"]
[EndTime "10:42:03 PDT"]
[Termination "chessdjw won by resignation"]

1. Nf3 {[%clk 0:03:00.9]} 1... Nf6 {[%clk 0:02:59.3]} 2. g3 {[%clk 0:03:01.4]}
2... g6 {[%clk 0:02:53.8]} 3. Bg2 {[%clk 0:03:02.3]} 3... Bg7 {[%clk 0:02:53.4]}
4. c4 {[%clk 0:03:03.2]} 4... O-O {[%clk 0:02:52.7]} 5. Nc3 {[%clk 0:03:03.7]}
5... d5 {[%clk 0:02:51.7]} 6. cxd5 {[%clk 0:03:04.6]} 6... Nxd5 {[%clk 0:02:52]}
7. h4 {[%clk 0:03:05.3]} 7... h5 {[%clk 0:02:36.2]} 8. O-O {[%clk 0:03:04.8]}
8... Nc6 {[%clk 0:02:34.1]} 9. d3 {[%clk 0:03:01.7]} 9... Nxc3 {[%clk
0:02:27.4]} 10. bxc3 {[%clk 0:03:02.6]} 10... Bxc3 {[%clk 0:02:26.8]} 11. Rb1
{[%clk 0:03:03.2]} 11... Rb8 {[%clk 0:02:17.1]} 12. Bh6 {[%clk 0:03:01.1]} 12...
Bg7 {[%clk 0:02:15.5]} 13. Qc1 {[%clk 0:02:53.4]} 13... Qd6 {[%clk 0:02:10.7]}
14. Bf4 {[%clk 0:02:48.7]} 14... e5 {[%clk 0:02:06.6]} 15. Be3 {[%clk
0:02:49.1]} 15... b6 {[%clk 0:01:55.5]} 16. Ng5 {[%clk 0:02:44.7]} 16... Nd4
{[%clk 0:01:43.8]} 17. Bxd4 {[%clk 0:02:21.2]} 17... exd4 {[%clk 0:01:44.7]} 18.
Ne4 {[%clk 0:02:21.6]} 18... Qe7 {[%clk 0:01:45]} 19. a4 {[%clk 0:02:05.4]}
19... c5 {[%clk 0:01:44.3]} 20. Nxc5 {[%clk 0:02:02.1]} 20... Bg4 {[%clk
0:01:32.9]} 21. Nb3 {[%clk 0:01:54.9]} 21... Rfc8 {[%clk 0:00:52.8]} 22. Qf4
{[%clk 0:01:54.4]} 22... Qe5 {[%clk 0:00:46.2]} 23. Qxe5 {[%clk 0:01:52]} 23...
Bxe5 {[%clk 0:00:47.1]} 24. f4 {[%clk 0:01:48.3]} 24... Bf6 {[%clk 0:00:40]} 25.
Kf2 {[%clk 0:01:48.7]} 25... Rc2 {[%clk 0:00:32.6]} 26. Bf3 {[%clk 0:01:49]}
26... Be6 {[%clk 0:00:32.1]} 27. a5 {[%clk 0:01:28.2]} 27... b5 {[%clk
0:00:31.2]} 28. a6 {[%clk 0:01:28.7]} 28... Rb6 {[%clk 0:00:28.4]} 29. Na5
{[%clk 0:01:25]} 29... Bd7 {[%clk 0:00:18.6]} 30. Rfc1 {[%clk 0:01:23.1]} 30...
Rxc1 {[%clk 0:00:16.6]} 31. Rxc1 {[%clk 0:01:24]} 31... Rxa6 {[%clk 0:00:17.2]}
32. Rc7 {[%clk 0:01:22.8]} 32... Be6 {[%clk 0:00:07.7]} 33. Nc6 {[%clk
0:01:22.4]} 33... Rb6 {[%clk 0:00:06.9]} 34. Rxa7 {[%clk 0:01:08.8]} 34... b4
{[%clk 0:00:07.4]} 35. Ra8+ {[%clk 0:00:19]} 35... Kg7 {[%clk 0:00:07]} 36. Nxb4
{[%clk 0:00:13.8]} 36... Rxb4 {[%clk 0:00:06.9]} 37. Ra7 {[%clk 0:00:13.2]}
37... Rb6 {[%clk 0:00:06.6]} 38. Ra4 {[%clk 0:00:13.1]} 38... Rd6 {[%clk
0:00:06.8]} 39. Rb4 {[%clk 0:00:13.4]} 39... Be7 {[%clk 0:00:06.8]} 40. Ra4
{[%clk 0:00:13.6]} 40... Rd7 {[%clk 0:00:07.2]} 41. Ra6 {[%clk 0:00:13.7]} 41...
Kf6 {[%clk 0:00:07.5]} 42. Be4 {[%clk 0:00:11.7]} 42... Rd6 {[%clk 0:00:07.7]}
43. Ra4 {[%clk 0:00:11.9]} 43... Bd7 {[%clk 0:00:07.5]} 44. Ra7 {[%clk
0:00:11.2]} 44... Bd8 {[%clk 0:00:07.5]} 45. Bf3 {[%clk 0:00:11]} 45... Bb6
{[%clk 0:00:07.8]} 46. Ra8 {[%clk 0:00:11.3]} 46... Ke7 {[%clk 0:00:08.1]} 47.
Be4 {[%clk 0:00:11.2]} 47... Bc5 {[%clk 0:00:07.8]} 48. Ra5 {[%clk 0:00:10.2]}
48... Bb4 {[%clk 0:00:07.3]} 49. Ra7 {[%clk 0:00:10.5]} 49... Bd2 {[%clk
0:00:06.5]} 50. Kg2 {[%clk 0:00:10]} 50... Be3 {[%clk 0:00:06.9]} 51. f5 {[%clk
0:00:10.4]} 51... gxf5 {[%clk 0:00:04.9]} 52. Bxf5 {[%clk 0:00:11.3]} 52... Kd8
{[%clk 0:00:05]} 53. Bxd7 {[%clk 0:00:11.2]} 53... Rxd7 {[%clk 0:00:05.3]} 54.
Ra5 {[%clk 0:00:11.8]} 54... Ke7 {[%clk 0:00:04]} 55. Rxh5 {[%clk 0:00:12.1]}
55... Ra7 {[%clk 0:00:04.3]} 56. g4 {[%clk 0:00:10.6]} 56... Ra1 {[%clk
0:00:04.6]} 57. Rf5 {[%clk 0:00:08.5]} 57... Ke6 {[%clk 0:00:04.1]} 58. Rb5
{[%clk 0:00:05.8]} 58... Rg1+ {[%clk 0:00:04.1]} 59. Kf3 {[%clk 0:00:05.9]}
59... Rf1+ {[%clk 0:00:04.4]} 60. Kg3 {[%clk 0:00:06.5]} 60... Re1 {[%clk
0:00:02.1]} 61. Rb6+ {[%clk 0:00:06.4]} 61... Ke7 {[%clk 0:00:02.7]} 62. Rb7+
{[%clk 0:00:06.3]} 62... Kf8 {[%clk 0:00:03]} 63. g5 {[%clk 0:00:05.3]} 63...
Kg7 {[%clk 0:00:03.2]} 64. Kg4 {[%clk 0:00:03.8]} 64... Rxe2 {[%clk 0:00:03.4]}
65. Kh5 {[%clk 0:00:04.3]} 65... Rd2 {[%clk 0:00:03.3]} 66. g6 {[%clk
0:00:04.2]} 66... Rf2 {[%clk 0:00:03.4]} 67. gxf7 {[%clk 0:00:04.3]} 67... Rxf7
{[%clk 0:00:03.9]} 68. Rb5 {[%clk 0:00:05]} 68... Rf6 {[%clk 0:00:03.7]} 69. Kg4
{[%clk 0:00:05.2]} 69... Rf4+ {[%clk 0:00:03.7]} 70. Kh5 {[%clk 0:00:04.9]}
70... Rf8 {[%clk 0:00:03.2]} 71. Kg4 {[%clk 0:00:05.3]} 71... Kh6 {[%clk
0:00:02.5]} 72. Rb6+ {[%clk 0:00:05.2]} 72... Kh7 {[%clk 0:00:02.7]} 73. Rb7+
{[%clk 0:00:06.1]} 73... Kh6 {[%clk 0:00:02.1]} 74. Rb6+ {[%clk 0:00:06.5]}
74... Kg7 {[%clk 0:00:02.8]} 75. Rb7+ {[%clk 0:00:07]} 75... Rf7 {[%clk
0:00:03.3]} 76. Rb6 {[%clk 0:00:07.2]} 76... Rc7 {[%clk 0:00:03.7]} 77. Kf5
{[%clk 0:00:06.2]} 77... Rc5+ {[%clk 0:00:03.7]} 78. Ke4 {[%clk 0:00:06.4]}
78... Rh5 {[%clk 0:00:03.5]} 79. Rb7+ {[%clk 0:00:06.9]} 79... Kg6 {[%clk
0:00:03.7]} 80. Rb6+ {[%clk 0:00:07.4]} 80... Kf7 {[%clk 0:00:04.2]} 81. Rb7+
{[%clk 0:00:07.9]} 81... Ke6 {[%clk 0:00:04.8]} 82. Rb6+ {[%clk 0:00:08.8]}
82... Kd7 {[%clk 0:00:05.2]} 83. Rg6 {[%clk 0:00:08.9]} 83... Rxh4+ {[%clk
0:00:05.2]} 84. Kd5 {[%clk 0:00:09.4]} 84... Rh7 {[%clk 0:00:05.7]} 85. Ra6
{[%clk 0:00:08.7]} 85... Rh5+ {[%clk 0:00:05.4]} 86. Kc4 {[%clk 0:00:09.2]}
86... Kc7 {[%clk 0:00:05.8]} 87. Rg6 {[%clk 0:00:09.2]} 87... Re5 {[%clk
0:00:05.8]} 88. Rg7+ {[%clk 0:00:09.4]} 88... Kd6 {[%clk 0:00:06.2]} 89. Rg6+
{[%clk 0:00:10.3]} 89... Re6 {[%clk 0:00:06.3]} 90. Rg8 {[%clk 0:00:10.9]} 90...
Ke5 {[%clk 0:00:06.5]} 91. Rc8 {[%clk 0:00:10.4]} 91... Rd6 {[%clk 0:00:06.3]}
92. Re8+ {[%clk 0:00:10.2]} 92... Kf5 {[%clk 0:00:06.7]} 93. Rf8+ {[%clk
0:00:10.5]} 93... Rf6 {[%clk 0:00:07.1]} 94. Rg8 {[%clk 0:00:09]} 94... Rc6+
{[%clk 0:00:07.4]} 95. Kd5 {[%clk 0:00:08.7]} 95... Rc3 {[%clk 0:00:07.8]} 96.
Rf8+ {[%clk 0:00:09.2]} 96... Kg4 {[%clk 0:00:08.2]} 97. Ke4 {[%clk 0:00:10.1]}
97... Kg3 {[%clk 0:00:08.5]} 98. Rf7 {[%clk 0:00:09.9]} 98... Kg2 {[%clk
0:00:08.5]} 99. Rf5 {[%clk 0:00:09.6]} 99... Rc8 {[%clk 0:00:08.8]} 100. Rf7
{[%clk 0:00:09.8]} 100... Re8+ {[%clk 0:00:09.1]} 101. Kd5 {[%clk 0:00:09.8]}
101... Bf2 {[%clk 0:00:08.7]} 102. Rf4 {[%clk 0:00:05.6]} 102... Kf1 {[%clk
0:00:08.5]} 103. Kc4 {[%clk 0:00:05.6]} 103... Ke2 {[%clk 0:00:08.1]} 104. Rf7
{[%clk 0:00:06]} 104... Rc8+ {[%clk 0:00:07.4]} 0-1